bitfinex/quotes_ETHUSD_20241013
["timestamp","ask_amount","ask_price","bid_price","bid_amount"]
[1728840379343,5.33892566,2460.8,2460.5,0.83430507]
[1728840379640,5.33892566,2460.8,2460.6,0.12728213]
[1728840379813,5.33892566,2460.8,2460.4,4.86869]
[1728840380014,5.33892566,2460.8,2460.5,1.13967299]
[1728840380234,5.33892566,2460.8,2460.6,0.12728195]
[1728840380401,5.33892566,2460.8,2460.4,4.86869]
[1728840380601,5.33892566,2460.8,2460.5,1.1396622]
[1728840380796,1.27520566,2460.8,2460.6,0.12728176]
[1728840381036,1.27520566,2460.8,2460.5,4.06419]
[1728840381243,1.27520566,2460.9,2460.7,0.8044]
[1728840382555,1.50218434,2461.0,2460.7,0.8044]
[1728840382556,2.77739,2461.0,2460.7,0.8044]
[1728840382768,6.84081,2461.0,2460.7,0.8044]
[1728840382926,1.27520566,2460.9,2460.7,0.8044]
[1728840383262,1.50218434,2460.9,2460.7,0.8044]
[1728840383468,6.84105,2460.9,2460.5,0.8044]
[1728840383630,7.61715,2460.9,2460.6,1.13926804]
[1728840383826,7.61715,2460.9,2460.7,0.1272753]
[1728840384051,7.61715,2460.9,2460.5,0.8044]
[1728840384264,7.61715,2460.9,2460.6,1.13926354]
[1728840384464,7.61715,2460.9,2460.5,4.8686]
[1728840384766,2.05130566,2460.9,2460.6,0.83398817]
[1728840385070,2.05130566,2460.9,2460.7,0.1272753]
[1728840385270,2.05130566,2460.9,2460.5,8.93264]
[1728840385425,2.05130566,2460.9,2460.6,0.83397153]
[1728840385629,2.05130566,2460.9,2460.5,4.86851]
[1728840385873,2.05130566,2460.9,2460.6,0.83393383]
[1728840386177,2.05130566,2460.9,2460.7,0.12727305]
[1728840386178,0.7761,2460.9,2460.7,0.12727305]
[1728840386467,0.7761,2460.9,2460.5,4.86851]
[1728840386648,0.7761,2460.9,2460.6,0.83388638]
[1728840386858,0.7761,2460.9,2460.7,0.12727318]
[1728840387167,0.7761,2460.9,2460.5,4.86851]
[1728840387368,0.7761,2460.9,2460.6,0.83388049]
[1728840387669,2.27828434,2460.9,2460.5,8.93264]
[1728840387969,2.27828434,2460.9,2460.6,0.83384715]
[1728840388218,2.27828434,2460.9,2460.5,8.93264]
[1728840388327,2.27828434,2460.9,2460.6,0.83384477]
[1728840388526,2.27828434,2460.9,2460.5,4.86851]
[1728840388855,2.27828434,2460.9,2460.6,0.83381686]
[1728840389170,2.27828434,2460.9,2460.5,8.93264]
[1728840389367,6.34184434,2460.9,2460.6,0.83381505]
[1728840389553,5.56609434,2460.7,2460.4,0.84705578]
[1728840389873,5.56590434,2460.8,2460.5,0.83383584]
[1728840390040,5.56590434,2460.8,2460.3,6.26589578]
[1728840390364,5.56590434,2460.8,2460.4,1.89368164]
[1728840390568,5.56590434,2460.8,2460.5,0.83384052]
[1728840390870,5.56590434,2460.8,2460.3,6.26589578]
[1728840391167,5.56590434,2460.8,2460.4,2.09733123]
[1728840391338,5.56590434,2460.8,2460.5,0.83384132]
[1728840391528,5.56590434,2460.8,2460.3,10.33034578]
[1728840391729,5.56590434,2460.8,2460.4,1.89370865]
[1728840392072,5.56590434,2460.8,2460.5,0.83385133]
[1728840392242,5.56590434,2460.8,2460.3,10.33034578]
[1728840392567,5.56590434,2460.8,2460.4,1.89370246]
[1728840392769,5.56590434,2460.8,2460.5,0.833849]
[1728840393088,5.56590434,2460.8,2460.3,10.33033578]
[1728840393244,5.56608434,2460.7,2460.4,1.76643353]
[1728840393452,4.06372,2460.8,2460.4,0.12727988]
[1728840393453,5.56639434,2460.5,2460.4,0.12727988]
[1728840393780,4.0644,2460.4,2460.0,0.84705578]
[1728840394071,1.50218434,2460.3,2460.1,0.12730487]
[1728840394235,1.50218434,2460.3,2459.9,9.78168578]
[1728840394449,1.50218434,2460.3,2460.0,5.95891614]
[1728840394643,1.50218434,2460.3,2460.0,4.19231519]
[1728840394849,1.50218434,2460.3,2460.1,0.83380431]
[1728840395075,1.50218434,2460.4,2460.0,4.06501]
[1728840395286,1.50218434,2460.4,2460.1,0.83379225]
[1728840395592,1.50218434,2460.4,2460.0,4.06501]
[1728840396456,9.40371566,2460.5,2460.0,4.06501]
[1728840396457,1.50218434,2460.3,2460.0,4.06501]
[1728840402687,4.06441,2460.4,2460.0,4.06501]
[1728840402887,1.50218434,2460.3,2460.0,4.06501]
[1728840403383,5.56659434,2460.4,2460.0,4.06501]
[1728840406088,5.56681434,2460.3,2460.0,0.55]
[1728840406326,6.36761434,2460.3,2460.0,0.55]
[1728840406475,6.36761434,2460.3,2459.8,8.13063]
[1728840406476,5.56713434,2460.1,2459.6,8.13115]
[1728840406680,5.56713434,2460.1,2459.7,0.83309212]
[1728840406681,1.50218434,2460.0,2459.7,0.83309212]
[1728840406915,1.50218434,2459.9,2459.5,6.37008561]
[1728840407100,5.56722434,2460.0,2459.6,1.89178161]
[1728840407305,5.56722434,2460.0,2459.5,5.67859578]
[1728840407486,5.56722434,2460.0,2459.6,5.95745698]
[1728840407689,1.50218434,2460.0,2459.7,0.55]
[1728840413000,4.06482,2460.2,2459.7,4.6967315]
[1728840413334,9.63180434,2460.2,2459.7,4.6967315]
[1728840413727,1.50218434,2460.1,2459.7,4.6967315]
[1728840414441,5.56709434,2460.1,2459.7,4.6967315]
[1728840415941,5.56709434,2460.1,2459.7,4.61543]
[1728840418305,5.56709434,2460.1,2459.6,4.61562]
[1728840419947,1.50218434,2460.1,2459.7,0.08130147]
[1728840420141,1.50218434,2460.1,2459.7,4.14673147]
[1728840420970,5.56707434,2460.1,2459.7,4.14673147]
[1728840421177,5.56707434,2460.1,2459.7,4.06543]
[1728840421345,5.56707434,2460.1,2459.7,4.14673147]
[1728840424469,5.56707434,2460.1,2459.7,4.06543]
[1728840424838,5.56707434,2460.1,2459.7,4.14673148]
[1728840425567,5.56707434,2460.1,2459.7,4.06543]
[1728840428691,5.56707434,2460.1,2459.8,0.8112]
[1728840431591,1.50218434,2460.0,2459.8,0.8112]
[1728840432150,5.56707434,2460.1,2459.8,0.8112]
[1728840435318,4.06522,2459.9,2459.6,1.3535]
[1728840435460,5.56740434,2459.9,2459.6,1.3535]
[1728840436312,1.50218434,2459.9,2459.6,1.3535]
[1728840436467,1.50218434,2459.9,2459.6,5.41918]
[1728840436668,1.50218434,2459.9,2459.7,0.70604332]
[1728840437011,1.50218434,2459.9,2459.6,5.41918]
[1728840437503,5.56707434,2460.1,2459.7,4.19285165]
[1728840437709,5.56707434,2460.1,2459.7,4.06553]
[1728840438356,5.56707434,2460.1,2459.8,0.12731783]
[1728840438469,5.56707434,2460.1,2459.7,4.06553]
[1728840439008,1.50218434,2460.1,2459.7,8.13098]
[1728840439295,1.50218434,2460.1,2459.8,0.12731835]
[1728840439465,1.50218434,2460.1,2459.7,4.06545]
[1728840439666,1.50218434,2460.1,2459.8,0.12731743]
[1728840439900,5.56706434,2460.1,2459.7,4.06545]
[1728840440098,5.56706434,2460.1,2459.8,0.83379499]
[1728840440304,5.56706434,2460.1,2459.7,4.06545]
[1728840440504,5.56706434,2460.1,2459.8,0.1273182]
[1728840440808,5.56706434,2460.1,2459.7,4.06545]
[1728840441115,4.06466,2460.3,2459.9,0.8035]
[1728840441116,5.56684434,2460.3,2459.9,0.8035]
[1728840441265,5.56684434,2460.3,2459.9,4.86869]
[1728840442601,1.27754775,2460.4,2460.0,4.06494]
[1728840442921,1.27754775,2460.6,2460.2,4.06462]
[1728840443130,1.50218434,2460.6,2460.2,4.06462]
[1728840443994,5.34151775,2460.7,2460.2,8.12924]
[1728840444194,5.34151775,2460.7,2460.3,0.8035]
[1728840444195,5.56615434,2460.7,2460.3,0.8035]
[1728840444699,1.50218434,2460.6,2460.3,0.8035]
[1728840445717,4.06397,2460.7,2460.3,4.94931231]
[1728840445718,5.56615434,2460.7,2460.3,4.94931231]
[1728840445930,1.50218434,2460.6,2460.3,4.94931231]
[1728840446129,1.50218434,2460.6,2460.3,6.02360675]
[1728840446621,5.56615434,2460.7,2460.3,6.02360675]
[1728840447026,1.50218434,2460.6,2460.3,6.02360675]
[1728840447429,1.50218434,2460.6,2460.3,1.95907675]
[1728840447923,1.50218434,2460.6,2460.3,1.87779444]
[1728840448908,4.06397,2460.7,2460.3,1.87779444]
[1728840448909,1.50218434,2460.5,2460.3,1.87779444]
[1728840449224,1.50218434,2460.5,2460.3,0.8035]
[1728840451530,5.56626434,2460.6,2460.3,0.8035]
[1728840452030,1.50218434,2460.6,2460.3,0.8035]
[1728840452602,1.50218434,2460.5,2460.3,0.8035]
[1728840453028,1.50218434,2460.6,2460.3,0.8035]
[1728840453236,1.50218434,2460.6,2460.3,0.88478237]
[1728840454898,1.50218434,2460.6,2460.3,0.8035]
[1728840455531,1.50218434,2460.6,2460.3,0.8760909]
[1728840456920,1.50218434,2460.6,2460.3,0.8035]
[1728840457167,1.50218434,2460.6,2460.3,4.86803]
[1728840457312,1.50218434,2460.6,2460.3,4.94931241]
[1728840460017,4.06388,2460.7,2460.3,5.92959435]
[1728840460018,5.56606434,2460.7,2460.3,5.92959435]
[1728840460316,5.56606434,2460.7,2460.3,6.01066686]
[1728840460815,5.56606434,2460.7,2460.3,5.92959435]
[1728840461253,5.56606434,2460.7,2460.3,4.86803]
[1728840461423,1.50218434,2460.6,2460.3,4.86803]
[1728840465179,1.50218434,2460.7,2460.3,4.86802]
[1728840465464,1.50218434,2460.7,2460.3,4.86795]
[1728840466429,1.50218434,2460.6,2460.3,4.86795]
[1728840479423,5.56626434,2460.6,2460.3,0.8035]
[1728840479763,1.50218434,2460.4,2460.3,0.8035]
[1728840479947,6.33516434,2460.4,2460.0,4.86151]
[1728840480154,1.50218434,2460.3,2460.0,4.86151]
[1728840480625,1.50218434,2460.3,2460.1,0.70615605]
[1728840480820,1.50218434,2460.3,2460.0,4.86151]
[1728840481235,1.50218434,2460.3,2460.1,0.70616137]
[1728840481440,1.50218434,2460.3,2460.0,5.71551571]
[1728840481652,1.50218434,2460.3,2460.1,0.706349]
[1728840481848,1.50218434,2460.3,2460.0,4.86151]
[1728840482051,1.50218434,2460.3,2460.1,0.70635262]
[1728840482259,1.50218434,2460.3,2460.0,4.86151]
[1728840482467,1.50218434,2460.3,2460.1,1.76667762]
[1728840482666,1.50218434,2460.3,2460.0,5.71551571]
[1728840482965,1.50218434,2460.3,2460.1,1.76668121]
[1728840483169,1.50218434,2460.3,2460.0,5.71551571]
[1728840483375,1.50218434,2460.3,2460.1,1.7666353]
[1728840483587,1.50218434,2460.3,2460.0,5.71551571]
[1728840483758,1.50218434,2460.3,2460.1,1.76662501]
[1728840483959,1.50218434,2460.3,2460.0,5.71551571]
[1728840484290,1.50218434,2460.3,2460.1,1.7666258]
[1728840484489,1.50218434,2460.3,2460.0,5.71551571]
[1728840484695,1.50218434,2460.3,2460.0,4.86151]
[1728840485590,1.50218434,2460.3,2460.1,1.76661917]
[1728840485753,2.27068434,2460.4,2460.0,5.71603035]
[1728840486094,2.27068434,2460.4,2460.1,1.76660167]
[1728840486391,2.08094677,2460.6,2460.2,4.0647]
[1728840486600,2.78183111,2460.7,2460.3,1.51189881]
[1728840486897,1.27964677,2460.7,2460.4,4.06437]
[1728840487048,6.84556111,2460.8,2460.4,4.06437]
[1728840487448,1.50218434,2460.7,2460.4,4.06437]
[1728840491793,1.50218434,2460.6,2460.3,0.8053]
[1728840491955,4.06373,2460.8,2460.3,0.8053]
[1728840491956,2.78220924,2460.8,2460.4,4.77096608]
[1728840492163,1.50218434,2460.7,2460.4,4.06425]
[1728840494503,1.50218434,2460.6,2460.3,2.01421142]
[1728840494663,1.50218434,2460.6,2460.4,0.70666707]
[1728840494906,1.50218434,2460.6,2460.3,6.07874142]
[1728840495132,1.50218434,2460.6,2460.4,0.70666763]
[1728840495331,1.50218434,2460.6,2460.3,6.07874142]
[1728840495518,1.50218434,2460.6,2460.4,1.80647062]
[1728840495712,1.50218434,2460.6,2460.4,1.0998012]
[1728840497420,5.34323153,2460.8,2460.4,5.1641412]
[1728840497734,6.84541587,2460.8,2460.4,5.1641412]
[1728840498469,1.50218434,2460.7,2460.4,5.1641412]
[1728840498824,6.84541587,2460.8,2460.4,5.1641412]
[1728840499124,1.50218434,2460.7,2460.4,5.1641412]
[1728840499770,2.78167587,2460.8,2460.4,9.2284012]
[1728840500047,2.78167587,2460.8,2460.5,4.0642]
[1728840500248,2.78167587,2460.8,2460.4,5.1641612]
[1728840500249,1.50218434,2460.8,2460.4,5.1641612]
[1728840500905,1.50218434,2460.8,2460.4,4.06436]
[1728840501127,2.78179661,2460.8,2460.4,4.06436]
[1728840502111,1.50218434,2460.8,2460.4,4.06436]
[1728840503170,2.7820367,2460.8,2460.4,4.06436]
[1728840504552,6.8457567,2460.8,2460.4,4.06436]
[1728840506340,1.50218434,2460.7,2460.4,4.06436]
[1728840507241,2.7820367,2460.8,2460.4,4.0643]
[1728840507614,2.7820367,2460.8,2460.3,0.8053]
[1728840507928,2.7820367,2460.8,2460.5,4.06419]
[1728840508312,2.7820367,2460.8,2460.6,0.761]
[1728840508313,1.27985236,2460.8,2460.6,0.761]
[1728840508558,1.50218434,2460.8,2460.6,0.761]
[1728840510224,1.50218434,2460.8,2460.5,4.06419]
[1728840511163,9.36705434,2460.9,2460.5,4.06419]
[1728840511464,1.27986948,2460.9,2460.6,4.06403]
[1728840511762,5.78205382,2461.0,2460.7,0.761]
[1728840512122,9.84551382,2461.0,2460.7,0.761]
[1728840512325,1.50218434,2460.9,2460.7,0.761]
[1728840512769,5.56573434,2460.9,2460.5,5.714106]
[1728840512954,1.50218434,2460.8,2460.5,4.82514]
[1728840513279,5.56606434,2460.7,2460.4,0.55]
[1728840514442,1.50218434,2460.7,2460.4,0.55]
[1728840514644,1.50218434,2460.7,2460.4,4.61435]
[1728840514978,7.65868382,2460.8,2460.4,4.61435]
[1728840516004,6.37881434,2460.8,2460.4,4.61435]
[1728840516158,6.37881434,2460.8,2460.4,5.64376982]
[1728840517044,5.56591434,2460.8,2460.4,5.64376982]
[1728840517253,1.50218434,2460.8,2460.5,4.06421]
[1728840517445,6.84561382,2460.9,2460.5,4.06421]
[1728840517765,1.50218434,2460.8,2460.5,4.06421]
[1728840517964,1.50218434,2460.8,2460.5,5.1965578]
[1728840518680,5.10036948,2461.0,2460.6,0.7994]
[1728840518681,8.34326948,2461.0,2460.6,0.7994]
[1728840519014,9.84545382,2461.0,2460.6,4.86338]
[1728840519510,1.27986948,2461.1,2460.9,4.06355]
[1728840519701,1.70649264,2461.2,2461.0,0.486295]
[1728840519702,2.78205382,2461.2,2461.0,0.486295]
[1728840520002,2.78205382,2461.2,2460.9,4.06355]
[1728840520188,1.50218434,2461.2,2460.9,4.06355]
[1728840520361,1.50218434,2461.2,2460.9,4.06345]
[1728840520690,1.27986948,2461.3,2461.1,4.06321]
[1728840520899,1.27986948,2461.3,2461.2,1.3494]
[1728840521113,3.20867698,2461.5,2461.3,4.06289]
[1728840521114,1.17986948,2461.4,2461.3,4.06289]
[1728840521394,1.50218434,2461.7,2461.3,4.06279]
[1728840521857,1.50218434,2461.7,2461.3,4.1345131]
[1728840522691,1.50218434,2461.7,2461.3,4.06279]
[1728840522892,1.50218434,2461.7,2461.3,4.14403863]
[1728840523095,1.50218434,2461.7,2461.3,5.15382059]
[1728840523805,4.88241,2461.9,2461.4,1.3494]
[1728840524097,4.88241,2461.9,2461.4,5.49327864]
[1728840524098,1.50218434,2461.8,2461.4,5.49327864]
[1728840524606,1.50218434,2461.8,2461.4,5.41203]
[1728840524781,1.50218434,2461.8,2461.5,1.0484602]
[1728840525199,1.50218434,2461.7,2461.5,1.0484602]
[1728840525399,1.50218434,2461.6,2461.4,1.3494]
[1728840525571,1.50218434,2461.6,2461.4,0.55]
[1728840529274,1.50218434,2461.6,2461.2,0.7994]
[1728840529472,1.50218434,2461.4,2461.3,0.55]
[1728840529805,1.50218434,2461.4,2461.2,0.55]
[1728840530019,1.50218434,2461.5,2461.2,1.01131]
[1728840530389,1.50218434,2461.5,2461.2,5.07432]
[1728840532014,4.88266,2461.8,2461.3,4.06287]
[1728840532228,2.32268434,2461.8,2461.4,4.8621]
[1728840532443,1.50218434,2461.8,2461.4,4.8621]
[1728840532795,1.50218434,2461.7,2461.4,4.8621]
[1728840532996,1.50218434,2461.7,2461.5,0.892497]
[1728840533204,1.50218434,2461.7,2461.4,4.8621]
[1728840533815,1.50218434,2461.9,2461.5,4.06247]
[1728840533992,1.50218434,2461.8,2461.5,4.06247]
[1728840534394,10.44,2462.2,2461.6,4.06231]
[1728840534395,7.06163,2462.1,2461.6,4.06231]
[1728840534617,1.50218434,2462.0,2461.6,4.06231]
[1728840534825,5.56391434,2462.0,2461.6,4.06231]
[1728840535030,1.50218434,2462.0,2461.7,4.8615]
[1728840535896,1.50218434,2462.0,2461.7,0.7994]
[1728840536815,1.50218434,2462.0,2461.7,4.86163]
[1728840537642,1.50218434,2461.9,2461.7,0.7994]
[1728840539240,1.50218434,2461.8,2461.7,0.55]
[1728840539450,1.50218434,2461.9,2461.7,0.55]
[1728840540501,1.50218434,2462.1,2461.7,4.61221]
[1728840540698,1.50218434,2462.1,2461.9,0.814]
[1728840540902,1.50218434,2462.0,2461.7,5.42623]
[1728840543797,1.50218434,2461.8,2461.5,4.06243]
[1728840544002,1.50218434,2461.7,2461.6,0.55]
[1728840544202,4.06197,2461.9,2461.6,0.55]
[1728840544203,1.50218434,2461.8,2461.6,0.55]
[1728840546426,1.50218434,2461.7,2461.6,0.55]
[1728840547206,1.50218434,2461.8,2461.6,0.55]
[1728840547639,4.06197,2461.9,2461.6,0.55]
[1728840547840,1.50218434,2461.9,2461.6,0.55]
[1728840548628,5.56408434,2461.9,2461.6,0.55]
[1728840549029,1.50218434,2461.8,2461.6,0.55]
[1728840554767,1.50218434,2461.8,2461.5,4.06243]
[1728840554768,1.50218434,2461.8,2461.5,0.55]
[1728840556247,1.50218434,2461.8,2461.5,4.61252]
[1728840556444,1.50218434,2461.7,2461.5,0.55]
[1728840556957,1.50218434,2461.8,2461.5,4.61256]
[1728840558562,1.50218434,2461.8,2461.5,0.55]
[1728840559465,1.50218434,2461.7,2461.5,0.55]
[1728840560469,1.50218434,2461.8,2461.5,0.55]
[1728840561668,1.50218434,2461.8,2461.5,4.61251]
[1728840562472,1.50218434,2461.9,2461.5,4.61251]
[1728840562776,1.50218434,2461.9,2461.5,5.561422]
[1728840563073,1.50218434,2461.8,2461.5,5.561422]
[1728840563243,1.50218434,2461.9,2461.5,5.561422]
[1728840563442,1.50218434,2461.8,2461.5,4.61251]
[1728840567457,1.50218434,2461.8,2461.6,0.43217663]
[1728840567645,1.50218434,2461.7,2461.6,0.55]
[1728840567842,1.50218434,2461.7,2461.6,0.98217392]
[1728840568163,4.06197,2461.9,2461.6,0.98217392]
[1728840568363,2.31888434,2461.7,2461.2,5.67156582]
[1728840568582,1.50218434,2461.5,2461.3,2.19724999]
[1728840568872,1.50218434,2461.5,2461.2,4.82178]
[1728840569077,1.50218434,2461.5,2461.3,1.13827747]
[1728840569229,1.50218434,2461.5,2461.2,5.67156582]
[1728840569435,1.50218434,2461.5,2461.3,2.19753417]
[1728840569642,1.50218434,2461.5,2461.2,9.73453582]
[1728840569994,1.50218434,2461.5,2461.3,1.68832775]
[1728840570157,1.50218434,2461.6,2461.3,0.55]
[1728840573382,1.50218434,2461.6,2461.3,4.61285]
[1728840574999,1.50218434,2461.6,2461.3,0.55]
[1728840575589,1.50218434,2461.5,2461.3,0.55]
[1728840575794,4.06241,2461.6,2461.3,0.55]
[1728840575795,1.50218434,2461.6,2461.3,0.55]
[1728840578895,1.50218434,2461.5,2461.3,0.55]
[1728840579097,1.50218434,2461.6,2461.3,0.55]
[1728840581572,6.15345755,2461.7,2461.3,0.55]
[1728840581900,1.50218434,2461.6,2461.3,0.55]
[1728840583282,1.50218434,2461.4,2461.3,0.55]
[1728840583862,6.15345755,2461.7,2461.3,0.55]
[1728840583863,1.50218434,2461.5,2461.3,0.55]
[1728840584107,10.21581755,2461.7,2461.3,0.55]
[1728840584108,1.50218434,2461.4,2461.3,0.55]
[1728840586400,1.50218434,2461.4,2461.1,0.55]
[1728840586558,1.50218434,2461.3,2461.0,4.85576]
[1728840587501,1.50218434,2461.3,2461.0,0.7924]
[1728840588502,1.50218434,2461.3,2461.0,4.85577]
[1728840588698,1.50218434,2461.3,2461.0,0.7924]
[1728840589219,2.28208434,2461.4,2461.0,4.85575]
[1728840589810,1.50218434,2461.3,2461.0,4.85575]
[1728840590166,1.50218434,2461.3,2461.0,0.7924]
[1728840590369,1.50218434,2461.3,2460.9,4.06348]
[1728840590604,1.50218434,2461.3,2461.0,0.55]
[1728840591906,1.50218434,2461.2,2461.0,0.55]
[1728840592615,4.84264,2461.4,2460.8,4.85605]
[1728840592616,1.50218434,2461.1,2460.8,4.85605]
[1728840592827,1.50218434,2461.1,2460.9,0.55]
[1728840593112,2.28208434,2461.0,2460.7,5.24256636]
[1728840593272,1.50218434,2460.8,2460.7,1.17869636]
[1728840593621,1.50218434,2460.9,2460.7,1.17869636]
[1728840593920,1.50218434,2460.9,2460.7,0.48754482]
[1728840600177,1.50218434,2460.9,2460.5,4.85658]
[1728840600395,1.50218434,2460.9,2460.6,0.55]
[1728840601195,1.50218434,2460.9,2460.6,4.61401]
[1728840602014,2.28208434,2461.0,2460.6,4.61401]
[1728840602211,2.28208434,2461.0,2460.6,5.71128743]
[1728840602785,0.8211,2461.3,2460.9,4.0635]
[1728840603123,0.8211,2461.3,2460.8,0.55]
[1728840603124,2.32328434,2461.3,2461.0,0.55]
[1728840603320,2.32328434,2461.3,2460.8,4.06357]
[1728840603321,1.50218434,2461.1,2460.9,0.55]
[1728840603621,4.88401,2461.3,2460.7,4.81995]
[1728840603622,1.50218434,2461.0,2460.7,4.81995]
[1728840603826,1.50218434,2461.0,2460.7,0.7561]
[1728840606110,2.32328434,2461.1,2460.7,0.7561]
[1728840606314,2.32328434,2461.1,2460.7,4.81998]
[1728840608500,1.50218434,2461.0,2460.7,4.81998]
[1728840608926,1.50218434,2461.0,2460.7,0.7561]
[1728840609123,1.50218434,2460.9,2460.6,0.55]
[1728840609338,4.27450755,2461.4,2460.5,0.55]
[1728840609339,1.50218434,2460.7,2460.5,0.55]
[1728840609638,2.32018434,2460.8,2460.5,0.55]
[1728840610331,6.38392434,2460.8,2460.5,0.55]
[1728840610630,6.38392434,2460.8,2460.4,0.8171]
[1728840610631,1.50218434,2460.6,2460.2,2.30557766]
[1728840610816,1.50218434,2460.4,2460.2,0.8171]
[1728840611134,1.50218434,2460.5,2460.2,0.8171]
[1728840613935,1.50218434,2460.5,2460.1,4.06474]
[1728840613936,1.50218434,2460.4,2460.1,4.06474]
[1728840614137,2.32018434,2460.5,2460.2,0.55]
[1728840615642,2.32958434,2460.6,2460.2,5.37829]
[1728840615838,7.44,2461.0,2460.4,0.55]
[1728840615839,7.89105,2460.9,2460.4,0.55]
[1728840616130,1.50218434,2460.7,2460.4,0.55]
[1728840618802,1.50218434,2460.5,2460.2,0.7636]
[1728840619004,1.50218434,2460.5,2460.3,0.55]
[1728840619695,1.50218434,2460.5,2460.1,0.55]
[1728840619696,5.56643434,2460.5,2460.1,0.55]
[1728840620499,1.50218434,2460.5,2460.1,4.61485]
[1728840622232,6.39363434,2460.6,2460.1,4.6961399]
[1728840622404,2.32958434,2460.6,2460.3,1.3136]
[1728840624042,1.50218434,2460.6,2460.3,1.3136]
[1728840624305,1.50218434,2460.7,2460.3,5.37802]
[1728840624508,1.50218434,2460.7,2460.3,10.0755094]
[1728840624821,1.50218434,2460.7,2460.3,6.0110694]
[1728840627723,1.50218434,2460.6,2460.3,1.9466494]
[1728840628445,1.50218434,2460.5,2460.3,1.1830494]
[1728840628619,1.50218434,2460.4,2459.9,8.88675]
[1728840628949,4.882,2460.5,2459.9,8.88675]
[1728840628950,5.56675434,2460.3,2460.0,0.70481001]
[1728840629248,1.50218434,2460.3,2459.9,0.7566]
[1728840629448,1.50218434,2460.3,2460.0,1.03761513]
[1728840629815,4.88192,2460.5,2460.0,5.10262513]
[1728840630090,1.50218434,2460.4,2460.0,1.03761513]
[1728840630244,6.38410434,2460.5,2460.1,0.55]
[1728840630445,1.50218434,2460.4,2460.1,0.55]
[1728840630776,1.50218434,2460.4,2460.1,1.64874612]
[1728840631644,5.56679434,2460.3,2460.0,0.55]
[1728840631845,1.50218434,2460.1,2459.8,1.05750804]
[1728840632156,2.31988434,2460.1,2459.8,0.55]
[1728840632476,0.8177,2460.1,2459.8,0.55]
[1728840633842,5.56689434,2460.2,2459.8,1.34318244]
[1728840633843,1.50218434,2460.2,2459.8,1.34318244]
[1728840634049,1.50218434,2460.2,2459.8,5.40852244]
[1728840634487,1.50218434,2460.3,2459.8,5.40852244]
[1728840635390,1.50218434,2460.3,2460.0,0.55]
[1728840635593,1.50218434,2460.2,2460.0,0.55]
[1728840635890,1.50218434,2460.2,2460.0,1.3129]
[1728840636791,1.50218434,2460.3,2460.0,1.3129]
[1728840637294,1.50218434,2460.3,2460.0,5.37785]
[1728840637476,1.50218434,2460.3,2460.0,6.34301283]
[1728840637880,2.31988434,2460.4,2460.0,6.34301283]
[1728840638084,1.50218434,2460.3,2460.0,6.34301283]
[1728840638752,1.50218434,2460.2,2460.0,2.27806283]
[1728840640399,1.50218434,2460.3,2460.0,2.27806283]
[1728840640691,1.50218434,2460.3,2460.1,4.06487]
[1728840640891,2.31988434,2460.4,2460.1,4.06487]
[1728840641451,1.50218434,2460.3,2460.1,4.06487]
[1728840641992,0.8177,2460.4,2460.1,4.06487]
[1728840641993,2.31988434,2460.4,2460.1,4.06487]
[1728840642348,2.31988434,2460.4,2460.0,6.34309283]
[1728840642578,1.50218434,2460.3,2460.0,6.34309283]
[1728840646284,1.50218434,2460.3,2460.0,6.34301283]
[1728840648324,1.50218434,2460.3,2460.0,5.37785]
[1728840651499,1.50218434,2460.3,2460.0,4.61495]
[1728840652330,1.50218434,2460.3,2459.8,4.82813]
[1728840652331,1.50218434,2460.1,2459.9,0.67730431]
[1728840652499,1.50218434,2460.0,2459.6,5.88197024]
[1728840652707,1.50218434,2460.0,2459.7,1.89161039]
[1728840652884,1.50218434,2460.0,2459.6,5.67827582]
[1728840653089,5.56728434,2460.0,2459.7,1.89165327]
[1728840653317,1.50218434,2459.9,2459.6,4.91537582]
[1728840653520,5.56728434,2460.0,2459.7,1.89184332]
[1728840653690,5.56728434,2460.0,2459.6,4.91537582]
[1728840653890,1.50218434,2460.0,2459.8,0.55]
[1728840654092,1.50218434,2459.9,2459.7,0.55]
[1728840654498,1.50218434,2460.0,2459.7,0.55]
[1728840655101,1.50218434,2459.8,2459.7,0.55]
[1728840655402,0.7995,2460.1,2459.7,0.55]
[1728840655403,1.50218434,2459.9,2459.7,0.55]
[1728840655629,5.56741434,2459.9,2459.5,0.55]
[1728840655814,5.56741434,2459.9,2459.7,0.55]
[1728840656126,1.50218434,2459.9,2459.6,0.55]
[1728840656316,1.50218434,2459.9,2459.4,5.88231306]
[1728840656317,1.50218434,2459.9,2459.5,5.67478312]
[1728840656499,1.50218434,2459.6,2459.5,0.55]
[1728840656706,1.50218434,2459.6,2459.4,4.91569582]
[1728840656707,1.50218434,2459.6,2459.4,0.55]
[1728840659236,1.50218434,2459.5,2459.3,0.55]
[1728840659453,1.50218434,2459.5,2459.2,0.1216662]
[1728840659615,1.50218434,2459.3,2459.2,0.1216662]
[1728840661019,2.32618434,2459.4,2459.2,0.1216662]
[1728840662339,1.50218434,2459.3,2459.2,0.1216662]
[1728840666425,2.32618434,2459.4,2459.2,0.1216662]
[1728840666945,1.50218434,2459.3,2459.2,0.1216662]
[1728840669151,2.32618434,2459.4,2459.2,0.1216662]
[1728840669766,1.50218434,2459.3,2459.2,0.1216662]
[1728840670055,5.56837434,2459.3,2459.2,0.1216662]
[1728840670268,6.39557434,2459.3,2459.2,0.1216662]
[1728840677062,9.39557434,2459.3,2459.2,0.1216662]
[1728840679654,7.89339,2459.3,2459.2,0.1216662]
[1728840679866,4.89161,2459.5,2459.2,0.1216662]
[1728840680074,4.89161,2459.5,2459.2,0.8793662]
[1728840680075,1.50218434,2459.3,2459.2,0.8793662]
[1728840681671,3.8257,2459.5,2459.2,0.8793662]
[1728840681970,1.50218434,2459.3,2459.2,0.8793662]
[1728840683282,1.50218434,2459.4,2459.2,0.8793662]
[1728840684249,4.89125,2459.7,2459.2,4.9456462]
[1728840684451,1.50218434,2459.5,2459.2,4.9456462]
[1728840684678,1.50218434,2459.5,2459.2,0.8793662]
[1728840685489,1.50218434,2459.4,2459.2,0.8793662]
[1728840686891,1.50218434,2459.3,2459.2,1.4293662]
[1728840688453,1.50218434,2459.4,2459.2,1.4293662]
[1728840694204,1.50218434,2459.4,2459.2,0.6716662]
[1728840694205,1.50218434,2459.3,2459.2,0.6716662]
[1728840694704,1.50218434,2459.3,2459.2,0.1216662]
[1728840694705,5.56837434,2459.3,2459.2,0.1216662]